[Event "*** SCC Grand Prix: Titled Tuesday Blitz"]
[Site "Chess.com"]
[Date "2020.06.09"]
[Round "8"]
[White "Fusikk"]
[Black "kuban1991"]
[Result "0-1"]
[WhiteElo "2588"]
[BlackElo "2787"]
[TimeControl "180+1"]
[EndTime "10:36:32 PDT"]
[Termination "kuban1991 won on time"]

1. d4 {[%clk 0:03:00.9]} 1... g6 {[%clk 0:02:58.9]} 2. c4 {[%clk 0:03:01]} 2...
Bg7 {[%clk 0:02:59]} 3. e4 {[%clk 0:03:01.5]} 3... Nc6 {[%clk 0:02:58.6]} 4. Ne2
{[%clk 0:02:55.7]} 4... e5 {[%clk 0:02:57.9]} 5. d5 {[%clk 0:02:55.1]} 5... Nd4
{[%clk 0:02:57.7]} 6. Be3 {[%clk 0:02:53.3]} 6... c5 {[%clk 0:02:57.8]} 7. dxc6
{[%clk 0:02:51.7]} 7... dxc6 {[%clk 0:02:58.7]} 8. c5 {[%clk 0:02:49.3]} 8...
Nh6 {[%clk 0:02:13.2]} 9. Nd2 {[%clk 0:01:30.6]} 9... Ng4 {[%clk 0:02:03.7]} 10.
Nc4 {[%clk 0:01:29.2]} 10... O-O {[%clk 0:01:58]} 11. Bxd4 {[%clk 0:01:10.4]}
11... exd4 {[%clk 0:01:55.8]} 12. h3 {[%clk 0:01:06.1]} 12... Be6 {[%clk
0:01:49.8]} 13. hxg4 {[%clk 0:00:53.2]} 13... Bxc4 {[%clk 0:01:49.4]} 14. Nf4
{[%clk 0:00:50.7]} 14... Bxf1 {[%clk 0:00:43.1]} 15. Kxf1 {[%clk 0:00:51.6]}
15... Qe7 {[%clk 0:00:39.3]} 16. Qc2 {[%clk 0:00:45.5]} 16... Rad8 {[%clk
0:00:26.3]} 17. Re1 {[%clk 0:00:43.7]} 17... Rfe8 {[%clk 0:00:24.6]} 18. Nd3
{[%clk 0:00:42]} 18... Qg5 {[%clk 0:00:24.6]} 19. f3 {[%clk 0:00:27.7]} 19... h6
{[%clk 0:00:24.7]} 20. Qc1 {[%clk 0:00:26.7]} 20... Qf6 {[%clk 0:00:17.3]} 21.
Kf2 {[%clk 0:00:26.4]} 21... b6 {[%clk 0:00:17.2]} 22. Qc4 {[%clk 0:00:20.6]}
22... b5 {[%clk 0:00:14.4]} 23. Qc1 {[%clk 0:00:20.2]} 23... a5 {[%clk
0:00:14.6]} 24. Qc2 {[%clk 0:00:18.8]} 24... Qe6 {[%clk 0:00:12.6]} 25. b3
{[%clk 0:00:18.5]} 25... a4 {[%clk 0:00:11.9]} 26. b4 {[%clk 0:00:18.6]} 26...
a3 {[%clk 0:00:11.8]} 27. Rb1 {[%clk 0:00:17.4]} 27... Qc4 {[%clk 0:00:12]} 28.
Rhc1 {[%clk 0:00:16.5]} 28... Qe6 {[%clk 0:00:12.1]} 29. Rb3 {[%clk 0:00:15.8]}
29... f5 {[%clk 0:00:11.9]} 30. gxf5 {[%clk 0:00:13.9]} 30... gxf5 {[%clk
0:00:12.8]} 31. Re1 {[%clk 0:00:13.8]} 31... Qg6 {[%clk 0:00:10.4]} 32. Nf4
{[%clk 0:00:10.6]} 32... Qg5 {[%clk 0:00:09.6]} 33. g3 {[%clk 0:00:05.8]} 33...
Be5 {[%clk 0:00:04.2]} 34. Rd3 {[%clk 0:00:04.3]} 34... Bxf4 {[%clk 0:00:03.8]}
35. gxf4 {[%clk 0:00:05.2]} 35... Qxf4 {[%clk 0:00:04.2]} 36. Rg1+ {[%clk
0:00:05.7]} 36... Kh7 {[%clk 0:00:03.4]} 37. Qb3 {[%clk 0:00:05.9]} 37... Re7
{[%clk 0:00:02.7]} 38. exf5 {[%clk 0:00:02.4]} 38... Qxf5 {[%clk 0:00:03.6]} 39.
Qc2 {[%clk 0:00:02]} 39... Rf8 {[%clk 0:00:02.9]} 40. Rd2 {[%clk 0:00:02.3]}
40... Qxc2 {[%clk 0:00:02.7]} 41. Rxc2 {[%clk 0:00:03.2]} 41... Re3 {[%clk
0:00:01.6]} 42. Rg3 {[%clk 0:00:02.6]} 42... Rc3 {[%clk 0:00:01.9]} 43. Rd2
{[%clk 0:00:02.9]} 43... Rf7 {[%clk 0:00:01.5]} 44. Rxd4 {[%clk 0:00:02.9]}
44... Rc2+ {[%clk 0:00:02]} 45. Ke3 {[%clk 0:00:03.8]} 45... Rxa2 {[%clk
0:00:02.7]} 46. Rd6 {[%clk 0:00:04.5]} 46... Ra1 {[%clk 0:00:03.1]} 47. Rh3
{[%clk 0:00:04.7]} 47... a2 {[%clk 0:00:03.3]} 48. Rhxh6+ {[%clk 0:00:04.8]}
48... Kg7 {[%clk 0:00:04.2]} 49. Rhg6+ {[%clk 0:00:04.1]} 49... Kf8 {[%clk
0:00:04.5]} 50. Rxc6 {[%clk 0:00:02.6]} 50... Re1+ {[%clk 0:00:04]} 51. Kf2
{[%clk 0:00:03.1]} 51... a1=Q {[%clk 0:00:04.9]} 52. Rc8+ {[%clk 0:00:03.5]}
52... Ke7 {[%clk 0:00:05.4]} 53. Re6+ {[%clk 0:00:03.7]} 53... Kxe6 {[%clk
0:00:05.6]} 54. Rc7 {[%clk 0:00:04.6]} 54... Kf6 {[%clk 0:00:06]} 55. Rxf7+
{[%clk 0:00:04.4]} 55... Kxf7 {[%clk 0:00:06.9]} 0-1

[Event "*** SCC Grand Prix: Titled Tuesday Blitz"]
[Site "Chess.com"]
[Date "2020.06.09"]
[Round "8"]
[White "fm24601"]
[Black "ljuks68"]
[Result "0-1"]
[WhiteElo "2523"]
[BlackElo "2358"]
[TimeControl "180+1"]
[EndTime "10:36:32 PDT"]
[Termination "ljuks68 won on time"]

1. e4 {[%clk 0:03:00]} 1... e6 {[%clk 0:02:59.8]} 2. d4 {[%clk 0:02:58.5]} 2...
d5 {[%clk 0:03:00.3]} 3. Nd2 {[%clk 0:02:59]} 3... Nf6 {[%clk 0:02:59.9]} 4. e5
{[%clk 0:02:58.6]} 4... Nfd7 {[%clk 0:03:00]} 5. Bd3 {[%clk 0:02:59.5]} 5... c5
{[%clk 0:03:00.3]} 6. c3 {[%clk 0:03:00]} 6... Nc6 {[%clk 0:03:00.7]} 7. Ngf3
{[%clk 0:03:00.4]} 7... Qb6 {[%clk 0:02:55.9]} 8. O-O {[%clk 0:03:00.1]} 8...
Be7 {[%clk 0:02:56.3]} 9. a3 {[%clk 0:02:55.8]} 9... cxd4 {[%clk 0:02:50.2]} 10.
cxd4 {[%clk 0:02:55.6]} 10... Nxd4 {[%clk 0:02:50.2]} 11. Nxd4 {[%clk
0:02:56.5]} 11... Qxd4 {[%clk 0:02:50.3]} 12. Nf3 {[%clk 0:02:57.1]} 12... Qb6
{[%clk 0:02:41.9]} 13. Qa4 {[%clk 0:02:57.3]} 13... O-O {[%clk 0:02:33.1]} 14.
Qg4 {[%clk 0:02:49]} 14... f5 {[%clk 0:02:23.2]} 15. Qg3 {[%clk 0:02:07.3]}
15... Nc5 {[%clk 0:02:22.7]} 16. Bc2 {[%clk 0:01:48.6]} 16... Ne4 {[%clk
0:02:20.4]} 17. Bxe4 {[%clk 0:01:48.9]} 17... dxe4 {[%clk 0:02:15.1]} 18. Nd2
{[%clk 0:01:26.4]} 18... Bd7 {[%clk 0:01:50.2]} 19. b4 {[%clk 0:01:23.2]} 19...
Bb5 {[%clk 0:01:48.2]} 20. Re1 {[%clk 0:01:22.2]} 20... Bd3 {[%clk 0:01:18.8]}
21. Nb3 {[%clk 0:01:14]} 21... Rac8 {[%clk 0:01:09.3]} 22. Bh6 {[%clk
0:01:07.7]} 22... Rf7 {[%clk 0:01:07.9]} 23. Be3 {[%clk 0:01:08]} 23... Qb5
{[%clk 0:00:58.7]} 24. Nc5 {[%clk 0:00:38.1]} 24... Bxc5 {[%clk 0:00:57.6]} 25.
Bxc5 {[%clk 0:00:39]} 25... b6 {[%clk 0:00:55.9]} 26. Be3 {[%clk 0:00:35.6]}
26... Rfc7 {[%clk 0:00:47.4]} 27. h4 {[%clk 0:00:35.1]} 27... Kh8 {[%clk
0:00:38.6]} 28. h5 {[%clk 0:00:35.1]} 28... h6 {[%clk 0:00:35.9]} 29. Bf4 {[%clk
0:00:31.6]} 29... Qd7 {[%clk 0:00:33.3]} 30. a4 {[%clk 0:00:29.2]} 30... Qf7
{[%clk 0:00:31.2]} 31. Qh3 {[%clk 0:00:28.3]} 31... Rc2 {[%clk 0:00:30.6]} 32.
a5 {[%clk 0:00:28.1]} 32... b5 {[%clk 0:00:17.2]} 33. Qh4 {[%clk 0:00:28.2]}
33... Be2 {[%clk 0:00:13.7]} 34. Rac1 {[%clk 0:00:16.5]} 34... a6 {[%clk
0:00:10.1]} 35. Rxc2 {[%clk 0:00:15.2]} 35... Rxc2 {[%clk 0:00:09.9]} 36. Qd8+
{[%clk 0:00:13.1]} 36... Kh7 {[%clk 0:00:09.2]} 37. Qd6 {[%clk 0:00:11.7]} 37...
Bc4 {[%clk 0:00:06.8]} 38. Qxa6 {[%clk 0:00:08.1]} 38... Qxh5 {[%clk 0:00:06.6]}
39. Qb6 {[%clk 0:00:08.2]} 39... Qg4 {[%clk 0:00:07]} 40. Qe3 {[%clk 0:00:08.3]}
40... Rb2 {[%clk 0:00:05.5]} 41. a6 {[%clk 0:00:07.7]} 41... Rb3 {[%clk
0:00:05.6]} 42. a7 {[%clk 0:00:06.6]} 42... Rxe3 {[%clk 0:00:01.7]} 43. fxe3
{[%clk 0:00:07.5]} 43... Bd5 {[%clk 0:00:01.9]} 44. Ra1 {[%clk 0:00:02.2]} 44...
g5 {[%clk 0:00:01.9]} 45. Rc1 {[%clk 0:00:02.4]} 45... gxf4 {[%clk 0:00:01.6]}
46. Rc7+ {[%clk 0:00:03.3]} 46... Kg6 {[%clk 0:00:02]} 0-1

[Event "*** SCC Grand Prix: Titled Tuesday Blitz"]
[Site "Chess.com"]
[Date "2020.06.09"]
[Round "8"]
[White "Shushik"]
[Black "Boudicca64"]
[Result "1-0"]
[WhiteElo "2170"]
[BlackElo "1825"]
[TimeControl "180+1"]
[EndTime "10:36:40 PDT"]
[Termination "Shushik won on time"]

1. e4 {[%clk 0:03:00.9]} 1... c5 {[%clk 0:02:58]} 2. Nf3 {[%clk 0:03:00.6]} 2...
e6 {[%clk 0:02:56.2]} 3. d4 {[%clk 0:03:00.7]} 3... cxd4 {[%clk 0:02:55.7]} 4.
Nxd4 {[%clk 0:03:01]} 4... a6 {[%clk 0:02:55.4]} 5. Nc3 {[%clk 0:03:00.7]} 5...
g6 {[%clk 0:02:54.5]} 6. Be3 {[%clk 0:02:58.7]} 6... Bg7 {[%clk 0:02:52.8]} 7.
Be2 {[%clk 0:02:56.5]} 7... Nc6 {[%clk 0:02:51.1]} 8. Qd2 {[%clk 0:02:49.7]}
8... Nge7 {[%clk 0:02:42.1]} 9. O-O-O {[%clk 0:02:42.3]} 9... d5 {[%clk
0:02:39.8]} 10. f3 {[%clk 0:02:34.6]} 10... dxe4 {[%clk 0:02:36]} 11. fxe4
{[%clk 0:02:32.6]} 11... O-O {[%clk 0:02:25.1]} 12. h4 {[%clk 0:02:31.7]} 12...
Nxd4 {[%clk 0:02:05.9]} 13. Bxd4 {[%clk 0:02:30.7]} 13... Bxd4 {[%clk
0:02:04.3]} 14. Qxd4 {[%clk 0:02:30.5]} 14... Qxd4 {[%clk 0:02:03.2]} 15. Rxd4
{[%clk 0:02:30.5]} 15... Nc6 {[%clk 0:02:02.1]} 16. Rd6 {[%clk 0:02:27.8]} 16...
e5 {[%clk 0:01:55.3]} 17. Bc4 {[%clk 0:02:20]} 17... Kg7 {[%clk 0:01:50.9]} 18.
h5 {[%clk 0:02:14.8]} 18... f5 {[%clk 0:01:48.3]} 19. hxg6 {[%clk 0:02:10.6]}
19... hxg6 {[%clk 0:01:46.4]} 20. Nd5 {[%clk 0:02:03.8]} 20... fxe4 {[%clk
0:01:39]} 21. Nb6 {[%clk 0:01:44.2]} 21... Rb8 {[%clk 0:01:36.4]} 22. Nxc8
{[%clk 0:01:35.4]} 22... Rbxc8 {[%clk 0:01:26.3]} 23. Rd7+ {[%clk 0:01:34.7]}
23... Kf6 {[%clk 0:01:23.7]} 24. Rxb7 {[%clk 0:01:20]} 24... Nd4 {[%clk
0:01:17.8]} 25. b3 {[%clk 0:01:13.6]} 25... e3 {[%clk 0:01:13.6]} 26. c3 {[%clk
0:01:06.5]} 26... Nf5 {[%clk 0:01:07]} 27. Rf1 {[%clk 0:01:02.8]} 27... Kg5
{[%clk 0:01:02.4]} 28. Rb6 {[%clk 0:00:52.9]} 28... Ng3 {[%clk 0:00:52.9]} 29.
Re1 {[%clk 0:00:52.6]} 29... Kf4 {[%clk 0:00:43.5]} 30. Rxg6 {[%clk 0:00:48]}
30... Rh8 {[%clk 0:00:32.6]} 31. Rf6+ {[%clk 0:00:45.4]} 31... Ke4 {[%clk
0:00:31.2]} 32. Kc2 {[%clk 0:00:36.6]} 32... Rh2 {[%clk 0:00:28.5]} 33. Bd3+
{[%clk 0:00:34.3]} 33... Kd5 {[%clk 0:00:27.1]} 34. Rxe3 {[%clk 0:00:30.9]}
34... Rxg2+ {[%clk 0:00:25.5]} 35. Kb1 {[%clk 0:00:30.6]} 35... e4 {[%clk
0:00:23.2]} 36. Bc4+ {[%clk 0:00:26.4]} 36... Ke5 {[%clk 0:00:21.8]} 37. Rg6
{[%clk 0:00:22.7]} 37... Rd8 {[%clk 0:00:18.7]} 38. Re1 {[%clk 0:00:18.2]} 38...
Rdd2 {[%clk 0:00:16]} 39. b4 {[%clk 0:00:14.6]} 39... Rb2+ {[%clk 0:00:13.5]}
40. Ka1 {[%clk 0:00:14.5]} 40... Kf4 {[%clk 0:00:11]} 41. Rf6+ {[%clk
0:00:11.6]} 41... Kg5 {[%clk 0:00:10.3]} 42. Rf8 {[%clk 0:00:10.7]} 42... Kg4
{[%clk 0:00:04.5]} 43. Rg8+ {[%clk 0:00:10.5]} 43... Kf3 {[%clk 0:00:03.5]} 44.
Rf8+ {[%clk 0:00:10]} 44... Kg4 {[%clk 0:00:03.3]} 45. Be6+ {[%clk 0:00:08.8]}
45... Kh4 {[%clk 0:00:02.2]} 46. Rf4+ {[%clk 0:00:07.9]} 46... Kg5 {[%clk
0:00:01.2]} 47. Rg4+ {[%clk 0:00:07.3]} 47... Kf6 {[%clk 0:00:01.1]} 48. Bc4
{[%clk 0:00:05.8]} 1-0

[Event "*** SCC Grand Prix: Titled Tuesday Blitz"]
[Site "Chess.com"]
[Date "2020.06.09"]
[Round "8"]
[White "monstertube"]
[Black "Ariadna_Atreides"]
[Result "0-1"]
[WhiteElo "2159"]
[BlackElo "1965"]
[TimeControl "180+1"]
[EndTime "10:36:44 PDT"]
[Termination "Ariadna_Atreides won on time"]

1. d4 {[%clk 0:03:00.9]} 1... Nf6 {[%clk 0:02:47]} 2. Nf3 {[%clk 0:03:00.3]}
2... d5 {[%clk 0:02:46.4]} 3. e3 {[%clk 0:02:59.1]} 3... e6 {[%clk 0:02:46.1]}
4. c4 {[%clk 0:02:59.3]} 4... Bd6 {[%clk 0:02:38]} 5. Nc3 {[%clk 0:02:58.9]}
5... O-O {[%clk 0:02:35.6]} 6. Bd3 {[%clk 0:02:58.6]} 6... b6 {[%clk 0:02:34.8]}
7. O-O {[%clk 0:02:51.6]} 7... Bb7 {[%clk 0:02:34]} 8. cxd5 {[%clk 0:02:51.8]}
8... exd5 {[%clk 0:02:32]} 9. b3 {[%clk 0:02:48.2]} 9... a6 {[%clk 0:02:29.6]}
10. Bb2 {[%clk 0:02:48.2]} 10... Nbd7 {[%clk 0:02:28]} 11. Rc1 {[%clk
0:02:48.6]} 11... Re8 {[%clk 0:02:22.7]} 12. a3 {[%clk 0:02:48.4]} 12... Ne4
{[%clk 0:02:18.5]} 13. b4 {[%clk 0:02:45]} 13... f5 {[%clk 0:02:15.6]} 14. Nd2
{[%clk 0:02:44.5]} 14... Ndf6 {[%clk 0:02:07.4]} 15. f3 {[%clk 0:02:35.7]} 15...
Nxc3 {[%clk 0:02:04.4]} 16. Rxc3 {[%clk 0:02:31.9]} 16... f4 {[%clk 0:01:42.7]}
17. exf4 {[%clk 0:01:43.4]} 17... Bxf4 {[%clk 0:01:43.6]} 18. Re1 {[%clk
0:01:41.8]} 18... Be3+ {[%clk 0:01:38.1]} 19. Kh1 {[%clk 0:01:41.1]} 19... Bxd4
{[%clk 0:01:36.5]} 20. Rc2 {[%clk 0:01:40]} 20... Bxb2 {[%clk 0:01:35.9]} 21.
Rxb2 {[%clk 0:01:40.9]} 21... Rxe1+ {[%clk 0:01:29.8]} 22. Qxe1 {[%clk
0:01:41.8]} 22... Qe8 {[%clk 0:01:29.9]} 23. Qd1 {[%clk 0:01:39]} 23... Qe3
{[%clk 0:01:22.4]} 24. Nf1 {[%clk 0:01:36.9]} 24... Qe5 {[%clk 0:01:21.2]} 25.
Re2 {[%clk 0:01:35.6]} 25... Qd6 {[%clk 0:01:20.6]} 26. Rd2 {[%clk 0:01:33.9]}
26... Re8 {[%clk 0:01:17.6]} 27. Ng3 {[%clk 0:01:29.2]} 27... c5 {[%clk
0:01:03.6]} 28. bxc5 {[%clk 0:01:20.3]} 28... bxc5 {[%clk 0:01:03.1]} 29. Nf5
{[%clk 0:01:20.3]} 29... Qe6 {[%clk 0:01:00]} 30. Re2 {[%clk 0:01:14.6]} 30...
Qd7 {[%clk 0:00:58.2]} 31. h3 {[%clk 0:00:50]} 31... Rxe2 {[%clk 0:00:41.4]} 32.
Qxe2 {[%clk 0:00:50.9]} 32... c4 {[%clk 0:00:41.4]} 33. Bc2 {[%clk 0:00:46.8]}
33... Nh5 {[%clk 0:00:32.2]} 34. Qd2 {[%clk 0:00:36.7]} 34... g6 {[%clk
0:00:21.6]} 35. Nh6+ {[%clk 0:00:31.7]} 35... Kg7 {[%clk 0:00:21.4]} 36. Ng4
{[%clk 0:00:29.1]} 36... Ng3+ {[%clk 0:00:20.2]} 37. Kg1 {[%clk 0:00:25.9]}
37... Nf5 {[%clk 0:00:19]} 38. Ne5 {[%clk 0:00:15.5]} 38... Qe6 {[%clk
0:00:17.2]} 39. f4 {[%clk 0:00:13.4]} 39... Qb6+ {[%clk 0:00:16.5]} 40. Kh2
{[%clk 0:00:12.9]} 40... Qe3 {[%clk 0:00:16]} 41. Qxe3 {[%clk 0:00:09.4]} 41...
Nxe3 {[%clk 0:00:16.9]} 42. Ba4 {[%clk 0:00:07.4]} 42... d4 {[%clk 0:00:16.6]}
43. Kg3 {[%clk 0:00:06.7]} 43... d3 {[%clk 0:00:16.3]} 44. Kf2 {[%clk
0:00:06.9]} 44... Nf5 {[%clk 0:00:15.3]} 45. Nxc4 {[%clk 0:00:05.9]} 45... Bd5
{[%clk 0:00:13.3]} 46. Ne5 {[%clk 0:00:04.5]} 46... d2 {[%clk 0:00:12.6]} 47.
Ke2 {[%clk 0:00:04.5]} 47... Bxg2 {[%clk 0:00:12.4]} 48. h4 {[%clk 0:00:03.3]}
48... Ne3 {[%clk 0:00:07.8]} 49. Kxd2 {[%clk 0:00:04.2]} 49... Nd5 {[%clk
0:00:07.4]} 50. Bb3 {[%clk 0:00:03.7]} 50... Nxf4 {[%clk 0:00:07]} 51. Nd3
{[%clk 0:00:03.9]} 51... Nxd3 {[%clk 0:00:06.7]} 52. Kxd3 {[%clk 0:00:04.8]}
52... h6 {[%clk 0:00:05.5]} 53. Ke3 {[%clk 0:00:05.7]} 53... g5 {[%clk
0:00:05.4]} 54. hxg5 {[%clk 0:00:05.9]} 54... hxg5 {[%clk 0:00:06]} 55. Bc4
{[%clk 0:00:06.1]} 55... a5 {[%clk 0:00:04.5]} 0-1

[Event "*** SCC Grand Prix: Titled Tuesday Blitz"]
[Site "Chess.com"]
[Date "2020.06.09"]
[Round "8"]
[White "Alexey_Spirin"]
[Black "anon569"]
[Result "0-1"]
[WhiteElo "2050"]
[BlackElo "2296"]
[TimeControl "180+1"]
[EndTime "10:36:48 PDT"]
[Termination "anon569 won on time"]

1. e4 {[%clk 0:03:00.7]} 1... c5 {[%clk 0:02:58.8]} 2. Nf3 {[%clk 0:03:00.7]}
2... d6 {[%clk 0:02:56.1]} 3. Bb5+ {[%clk 0:03:00.6]} 3... Bd7 {[%clk
0:02:55.3]} 4. Bxd7+ {[%clk 0:02:59.3]} 4... Qxd7 {[%clk 0:02:55.5]} 5. O-O
{[%clk 0:02:59]} 5... g6 {[%clk 0:02:54.7]} 6. c3 {[%clk 0:02:58.7]} 6... Bg7
{[%clk 0:02:53.9]} 7. d4 {[%clk 0:02:58.8]} 7... cxd4 {[%clk 0:02:53.1]} 8. cxd4
{[%clk 0:02:59.1]} 8... Nf6 {[%clk 0:02:53.6]} 9. Nc3 {[%clk 0:02:59.3]} 9...
O-O {[%clk 0:02:52.7]} 10. Qe2 {[%clk 0:02:59.6]} 10... Nc6 {[%clk 0:02:52.3]}
11. Rd1 {[%clk 0:02:59.5]} 11... d5 {[%clk 0:02:46]} 12. e5 {[%clk 0:02:29.9]}
12... Ne8 {[%clk 0:02:45.1]} 13. h3 {[%clk 0:02:26.8]} 13... Nc7 {[%clk
0:02:44]} 14. Be3 {[%clk 0:02:22.3]} 14... f6 {[%clk 0:02:29.1]} 15. exf6 {[%clk
0:02:20.8]} 15... Bxf6 {[%clk 0:02:29.5]} 16. Qd2 {[%clk 0:02:17.4]} 16... Ne6
{[%clk 0:02:24.2]} 17. Re1 {[%clk 0:02:13.7]} 17... Rac8 {[%clk 0:02:21.7]} 18.
Rad1 {[%clk 0:01:53.1]} 18... Bg7 {[%clk 0:02:02.7]} 19. Ne5 {[%clk 0:01:33]}
19... Bxe5 {[%clk 0:01:33.8]} 20. dxe5 {[%clk 0:01:32.9]} 20... d4 {[%clk
0:01:34]} 21. Bh6 {[%clk 0:01:33.1]} 21... Rf7 {[%clk 0:01:25.1]} 22. Ne4 {[%clk
0:01:16.3]} 22... Nxe5 {[%clk 0:01:18.4]} 23. Ng5 {[%clk 0:01:14.1]} 23... Nc4
{[%clk 0:00:51.6]} 24. Qb4 {[%clk 0:00:58.1]} 24... Nxg5 {[%clk 0:00:50.7]} 25.
Bxg5 {[%clk 0:00:57.7]} 25... e5 {[%clk 0:00:48.5]} 26. Qb3 {[%clk 0:00:51.4]}
26... Qf5 {[%clk 0:00:46.3]} 27. Bh4 {[%clk 0:00:44.4]} 27... Nd6 {[%clk
0:00:40.6]} 28. f3 {[%clk 0:00:38]} 28... Re8 {[%clk 0:00:20]} 29. Qd5 {[%clk
0:00:35.7]} 29... Nc8 {[%clk 0:00:15.6]} 30. Bg3 {[%clk 0:00:29.6]} 30... Nb6
{[%clk 0:00:15]} 31. Qb5 {[%clk 0:00:25.7]} 31... Rfe7 {[%clk 0:00:13.6]} 32.
Bh4 {[%clk 0:00:21.7]} 32... Re6 {[%clk 0:00:13.3]} 33. Re4 {[%clk 0:00:18.8]}
33... a6 {[%clk 0:00:11.4]} 34. Qb3 {[%clk 0:00:17.4]} 34... Kg7 {[%clk
0:00:11.6]} 35. Rc1 {[%clk 0:00:16.9]} 35... g5 {[%clk 0:00:08.4]} 36. Be1
{[%clk 0:00:13.4]} 36... Kg6 {[%clk 0:00:08.1]} 37. Rc7 {[%clk 0:00:09.3]} 37...
Qf6 {[%clk 0:00:05.3]} 38. Qc2 {[%clk 0:00:08.3]} 38... R6e7 {[%clk 0:00:02.1]}
39. Rxe5+ {[%clk 0:00:05.9]} 39... Kg7 {[%clk 0:00:02.5]} 40. Rcxe7+ {[%clk
0:00:05.7]} 40... Rxe7 {[%clk 0:00:03.1]} 41. Rxe7+ {[%clk 0:00:06.1]} 41...
Qxe7 {[%clk 0:00:03.7]} 42. Bf2 {[%clk 0:00:06.5]} 42... Qe5 {[%clk 0:00:03.9]}
43. Qd3 {[%clk 0:00:04.3]} 43... Kh6 {[%clk 0:00:03.5]} 44. Qxd4 {[%clk
0:00:04.1]} 44... Qxd4 {[%clk 0:00:03]} 45. Bxd4 {[%clk 0:00:04.6]} 45... Nd5
{[%clk 0:00:03.6]} 46. a3 {[%clk 0:00:04.8]} 46... Kg6 {[%clk 0:00:04.1]} 47.
Kf2 {[%clk 0:00:05.2]} 47... Kf5 {[%clk 0:00:04.6]} 48. g3 {[%clk 0:00:05.6]}
48... h5 {[%clk 0:00:05]} 49. Ke2 {[%clk 0:00:03.1]} 49... b5 {[%clk 0:00:03.6]}
50. Kd3 {[%clk 0:00:01.7]} 50... h4 {[%clk 0:00:03.4]} 0-1

[Event "*** SCC Grand Prix: Titled Tuesday Blitz"]
[Site "Chess.com"]
[Date "2020.06.09"]
[Round "8"]
[White "LiemLe"]
[Black "KuzubovYuriy"]
[Result "0-1"]
[WhiteElo "2903"]
[BlackElo "2787"]
[TimeControl "180+1"]
[EndTime "10:36:53 PDT"]
[Termination "KuzubovYuriy won by resignation"]

1. c4 {[%clk 0:03:00.9]} 1... e5 {[%clk 0:02:58.6]} 2. g3 {[%clk 0:02:58.5]}
2... Nc6 {[%clk 0:02:57.3]} 3. Nc3 {[%clk 0:02:53.9]} 3... Bc5 {[%clk
0:02:56.5]} 4. Bg2 {[%clk 0:02:53.6]} 4... d6 {[%clk 0:02:55.6]} 5. a3 {[%clk
0:02:53.2]} 5... a6 {[%clk 0:02:55.2]} 6. e3 {[%clk 0:02:53.3]} 6... Nge7 {[%clk
0:02:51.3]} 7. Nge2 {[%clk 0:02:52.5]} 7... h5 {[%clk 0:02:50.7]} 8. h3 {[%clk
0:02:52.8]} 8... Ba7 {[%clk 0:02:49.6]} 9. b4 {[%clk 0:02:49.6]} 9... Bf5 {[%clk
0:02:41.2]} 10. d3 {[%clk 0:02:47.4]} 10... Rb8 {[%clk 0:02:36.7]} 11. Bb2
{[%clk 0:02:37.6]} 11... Qd7 {[%clk 0:02:34.4]} 12. Qd2 {[%clk 0:02:21.9]} 12...
b5 {[%clk 0:02:27.1]} 13. Rc1 {[%clk 0:02:14.9]} 13... O-O {[%clk 0:02:11.7]}
14. Nd5 {[%clk 0:02:10.1]} 14... Bg6 {[%clk 0:01:43.9]} 15. O-O {[%clk
0:02:06.8]} 15... Nxd5 {[%clk 0:01:43.5]} 16. cxd5 {[%clk 0:02:07.7]} 16... Ne7
{[%clk 0:01:43.4]} 17. Kh2 {[%clk 0:01:53.3]} 17... Rbe8 {[%clk 0:01:34.1]} 18.
e4 {[%clk 0:01:20.3]} 18... c6 {[%clk 0:01:10.6]} 19. dxc6 {[%clk 0:01:21.2]}
19... Nxc6 {[%clk 0:01:10.6]} 20. f4 {[%clk 0:01:22.1]} 20... f6 {[%clk
0:01:08.7]} 21. d4 {[%clk 0:01:12.6]} 21... exd4 {[%clk 0:01:04]} 22. e5 {[%clk
0:00:58.8]} 22... d5 {[%clk 0:00:38.8]} 23. exf6 {[%clk 0:00:56.8]} 23... Rxf6
{[%clk 0:00:31.3]} 24. Nxd4 {[%clk 0:00:54.7]} 24... Nxd4 {[%clk 0:00:27]} 25.
Bxd4 {[%clk 0:00:55.6]} 25... Bxd4 {[%clk 0:00:26.5]} 26. Qxd4 {[%clk
0:00:56.5]} 26... Be4 {[%clk 0:00:26.5]} 27. Rcd1 {[%clk 0:00:35.4]} 27... Bxg2
{[%clk 0:00:24.5]} 28. Kxg2 {[%clk 0:00:36.3]} 28... Rd6 {[%clk 0:00:19]} 29.
Rfe1 {[%clk 0:00:33.1]} 29... Rxe1 {[%clk 0:00:18.8]} 30. Rxe1 {[%clk 0:00:34]}
30... Re6 {[%clk 0:00:18.7]} 31. Rd1 {[%clk 0:00:21.7]} 31... Re2+ {[%clk
0:00:17.8]} 32. Kf3 {[%clk 0:00:20.4]} 32... Qe6 {[%clk 0:00:17.2]} 33. Qxd5
{[%clk 0:00:17.3]} 33... Re3+ {[%clk 0:00:17]} 34. Kf2 {[%clk 0:00:17.6]} 34...
Qxd5 {[%clk 0:00:17.4]} 35. Rxd5 {[%clk 0:00:17.3]} 35... Rxa3 {[%clk
0:00:17.9]} 36. Rd6 {[%clk 0:00:12.8]} 36... Rb3 {[%clk 0:00:17.8]} 37. Rxa6
{[%clk 0:00:12.4]} 37... Rxb4 {[%clk 0:00:18.3]} 38. Rb6 {[%clk 0:00:12.6]}
38... h4 {[%clk 0:00:18]} 39. f5 {[%clk 0:00:10.3]} 39... Rb2+ {[%clk
0:00:17.7]} 40. Kg1 {[%clk 0:00:07.3]} 40... hxg3 {[%clk 0:00:17.3]} 41. Rg6
{[%clk 0:00:07.3]} 41... Kf7 {[%clk 0:00:16.2]} 42. Rxg3 {[%clk 0:00:07.5]}
42... Rc2 {[%clk 0:00:16]} 43. Rd3 {[%clk 0:00:04.8]} 43... Rc5 {[%clk
0:00:15.2]} 44. Rd7+ {[%clk 0:00:05.3]} 44... Kf6 {[%clk 0:00:15.4]} 45. Rb7
{[%clk 0:00:06.1]} 45... Rxf5 {[%clk 0:00:15.3]} 46. Kg2 {[%clk 0:00:05.5]}
46... g5 {[%clk 0:00:15]} 47. Kg3 {[%clk 0:00:05.6]} 47... Ke6 {[%clk 0:00:13]}
48. Kg4 {[%clk 0:00:05.8]} 48... Rc5 {[%clk 0:00:13]} 49. Rb6+ {[%clk
0:00:05.7]} 49... Kd7 {[%clk 0:00:12.9]} 50. Rf6 {[%clk 0:00:03.8]} 50... Kc7
{[%clk 0:00:11.7]} 51. Rf7+ {[%clk 0:00:02.8]} 51... Kb6 {[%clk 0:00:11.4]} 52.
Kf3 {[%clk 0:00:03.1]} 52... b4 {[%clk 0:00:11.2]} 53. Ke2 {[%clk 0:00:03.3]}
53... Rd5 {[%clk 0:00:10.5]} 54. Rf8 {[%clk 0:00:01.7]} 54... Kb5 {[%clk
0:00:10.2]} 55. Rb8+ {[%clk 0:00:01.7]} 55... Kc4 {[%clk 0:00:10.6]} 56. Rc8+
{[%clk 0:00:02.2]} 56... Kb3 {[%clk 0:00:10.8]} 57. Kf3 {[%clk 0:00:01.4]} 57...
Ka2 {[%clk 0:00:10.1]} 58. Ra8+ {[%clk 0:00:01.6]} 58... Kb2 {[%clk 0:00:10.4]}
59. Rb8 {[%clk 0:00:02.4]} 59... b3 {[%clk 0:00:10.7]} 60. Ke4 {[%clk
0:00:03.3]} 60... Ra5 {[%clk 0:00:10.4]} 61. Kd3 {[%clk 0:00:03.5]} 61... Ka2
{[%clk 0:00:08.7]} 62. Kc3 {[%clk 0:00:03.6]} 62... Rc5+ {[%clk 0:00:08.6]} 63.
Kd4 {[%clk 0:00:04]} 63... Rc7 {[%clk 0:00:08.4]} 64. Ra8+ {[%clk 0:00:03.9]}
64... Kb1 {[%clk 0:00:08.5]} 65. Ra5 {[%clk 0:00:04.3]} 65... Rh7 {[%clk
0:00:07.7]} 66. Rxg5 {[%clk 0:00:03.6]} 66... Rxh3 {[%clk 0:00:07.7]} 67. Rg1+
{[%clk 0:00:03.1]} 67... Ka2 {[%clk 0:00:07.8]} 68. Rg2+ {[%clk 0:00:02]} 68...
b2 {[%clk 0:00:08.1]} 0-1